fUST/lending_fUST_20250301
["ID","MTS","AMOUNT","RATE_DAILY","PERIOD"]
[354909325,1740811864781,-500.0,0.0003916,2]
[354909326,1740811864790,-1418.54,0.0003916,2]
[354909327,1740811864799,-500.0,0.0003916,2]
[354909328,1740811864808,-500.0,0.0003916,2]
[354909329,1740811864818,-500.0,0.0003916,2]
[354909330,1740811864827,-500.0,0.0003916,2]
[354909331,1740811864836,-500.0,0.0003916,2]
[354909332,1740811864845,-521.32,0.0003916,2]
[354909333,1740811864854,-500.0,0.0003916,2]
[354909334,1740811864863,-353.261417,0.0003916,14]
[354909335,1740811864873,-353.261417,0.0003916,14]
[354909336,1740811864882,-353.261417,0.0003916,14]
[354909337,1740811864892,-517.70690516,0.0003916,2]
[354909338,1740811864901,-326.043892,0.0003916,14]
[354909339,1740811864911,-353.261417,0.0003916,14]
[354909340,1740811864920,-353.261417,0.0003916,14]
[354909341,1740811864930,-353.261417,0.0003916,14]
[354909342,1740811864939,-500.0,0.0003916,2]
[354909343,1740811864948,-326.04389,0.0003916,14]
[354909344,1740811864957,-151.0,0.0003916,14]
[354909345,1740811864967,-500.0,0.0003916,2]
[354909346,1740811864976,-770.48,0.0003916,2]
[354909347,1740811864985,-500.0,0.0003916,2]
[354909348,1740811864994,-193.566844,0.0003916,14]
[354909349,1740811865004,-193.566844,0.0003916,14]
[354909350,1740811865015,-193.566844,0.0003916,14]
[354909351,1740811865025,-502.19218738,0.0003916,2]
[354909352,1740811865036,-193.566844,0.0003916,14]
[354909353,1740811865046,-193.566844,0.0003916,14]
[354909354,1740811865055,-193.566844,0.0003916,14]
[354909355,1740811865064,-500.0,0.0003916,2]
[354909356,1740811865075,-859.08,0.0003916,2]
[354909357,1740811865085,-1433.51,0.0003916,2]
[354909358,1740811865095,-500.0,0.0003916,2]
[354909359,1740811865105,-500.0,0.0003916,2]
[354909360,1740811865115,-500.0,0.0003916,2]
[354909361,1740811865124,-979.76,0.0003916,2]
[354909362,1740811865133,-1583.17,0.0003916,2]
[354909363,1740811865143,-1276.83,0.0003916,2]
[354909364,1740811865152,-711.73,0.0003916,2]
[354909365,1740811865162,-536.79,0.0003916,2]
[354909366,1740811865171,-500.0,0.0003916,2]
[354909367,1740811865181,-1144.76,0.0003916,2]
[354909368,1740811865190,-500.0,0.0003916,2]
[354909369,1740811865200,-502.51459829,0.0003916,2]
[354909370,1740811865210,-586.92,0.0003916,2]
[354909371,1740811865220,-504.51657921,0.0003916,2]
[354909372,1740811865229,-502.85480777,0.0003916,2]
[354909373,1740811865239,-503.4512173,0.0003916,2]
[354909374,1740811865249,-1953.34,0.0003916,2]
[354909375,1740811865258,-500.0,0.0003916,2]
[354909376,1740811865267,-151.0,0.0003916,14]
[354909377,1740811865277,-327.357506,0.0003916,14]
[354909378,1740811865286,-327.35749992,0.0003916,14]
[354909379,1740811865296,-1540.43,0.0003916,2]
[354909380,1740811865306,-1758.737634,0.0003916,14]
[354909381,1740811865315,-1758.737634,0.0003916,14]
[354909382,1740811865325,-1758.737634,0.0003916,14]
[354909383,1740811865335,-1758.73764211,0.0003916,14]
[354909384,1740811865345,-500.0,0.0003916,2]
[354909385,1740811865355,-527.41,0.0003916,2]
[354909386,1740811865364,-2654.46,0.0003916,2]
[354909387,1740811865374,-500.0,0.0003916,2]
[354909388,1740811865384,-686.52,0.0003916,2]
[354909389,1740811865395,-500.0,0.0003916,2]
[354909390,1740811865404,-500.0,0.0003916,2]
[354909391,1740811865415,-7937.43,0.0003916,2]
[354909392,1740811865425,-946.95,0.0003916,2]
[354909393,1740811865435,-500.0,0.0003916,2]
[354909394,1740811865445,-500.0,0.0003916,2]
[354909395,1740811865455,-500.0,0.0003916,2]
[354909396,1740811865466,-500.0,0.0003916,2]
[354909397,1740811865476,-793.75,0.0003916,2]
[354909398,1740811865486,-500.0,0.0003916,2]
[354909399,1740811865497,-500.0,0.0003916,2]
[354909400,1740811865506,-500.0,0.0003916,2]
[354909401,1740811865517,-500.0,0.0003916,2]
[354909402,1740811865527,-500.0,0.0003916,2]
[354909403,1740811865537,-500.0,0.0003916,2]
[354909404,1740811865547,-500.0,0.0003916,2]
[354909405,1740811865558,-576.25,0.0003916,2]
[354909406,1740811865568,-500.0,0.0003916,2]
[354909407,1740811865578,-500.0,0.0003916,2]
[354909408,1740811865589,-500.0,0.0003916,2]
[354909409,1740811865601,-500.0,0.0003916,2]
[354909410,1740811865610,-500.0,0.0003916,2]
[354909411,1740811865620,-500.0,0.0003916,2]
[354909412,1740811865630,-323.07,0.0003916,2]
[354909413,1740811865640,-500.0,0.0003916,2]
[354909414,1740811865650,-500.0,0.0003916,2]
[354909415,1740811865660,-1958.03,0.0003916,2]
[354909416,1740811865671,-2368.61,0.0003916,2]
[354909417,1740811865680,-1039.51,0.0003916,2]
[354909418,1740811865690,-813.63,0.0003916,2]
[354909419,1740811865701,-2032.81,0.0003916,2]
[354909420,1740811865711,-531.32,0.0003916,2]
[354909421,1740811865720,-510.78311647,0.0003916,2]
[354909422,1740811865731,-151.0,0.00039161,14]
[354909423,1740811865740,-151.0,0.00039161,14]
[354909424,1740811865750,-157.660582,0.00039161,14]
[354909425,1740811865761,-157.660582,0.00039161,14]
[354909426,1740811865771,-1252.641074,0.00039161,14]
[354909427,1740811865780,-1252.641084,0.00039161,14]
[354909428,1740811865790,-151.0,0.00039161,14]
[354909429,1740811865800,-297.506584,0.00039161,14]
[354909430,1740811865810,-297.506585,0.00039161,14]
[354909431,1740811865820,-376.641459,0.00039161,14]
[354909432,1740811865830,-376.641463,0.00039161,14]
[354909433,1740811865840,-193.566844,0.00039161,14]
[354909434,1740811865850,-193.566844,0.00039161,14]
[354909435,1740811865860,-500.0,0.00039161,2]
[354909436,1740811865871,-532.77,0.00039161,2]
[354909437,1740811865881,-727.63,0.00039161,2]
[354909438,1740811865891,-505.40143779,0.00039161,2]
[354909439,1740811865901,-3506.83,0.00039161,2]
[354909440,1740811865912,-2172.42,0.00039161,2]
[354909441,1740811865922,-609.77,0.00039161,2]
[354909442,1740811865932,-511.54275996,0.00039161,2]
[354909443,1740811865942,-181.434084,0.0003917,14]
[354909444,1740811865952,-181.434084,0.0003917,14]
[354909445,1740811865961,-181.434084,0.0003917,14]
[354909446,1740811865971,-181.434084,0.0003917,14]
[354909447,1740811865981,-408.105417,0.0003917,14]
[354909448,1740811865990,-151.0,0.0003917,14]
[354909449,1740811866000,-154.95334,0.0003917,14]
[354909450,1740811866010,-157.660582,0.0003917,14]
[354909451,1740811866019,-157.660582,0.0003917,14]
[354909452,1740811866032,-500.0,0.00039173,5]
[354909453,1740811866041,-500.0,0.00039173,5]
[354909454,1740811866051,-151.0,0.00039173,14]
[354909455,1740811866061,-484.35393846,0.00039178,30]
[354909456,1740811866071,-154.01556,0.000392,4]
[354909457,1740811866081,-1071.794405,0.00039212,2]
[354909458,1740811866091,-500.0,0.00039232,2]
[354909459,1740811866101,-500.0,0.00039232,2]
[354909460,1740811866112,-500.0,0.00039232,2]
[354909461,1740811866122,-418.88990574,0.00039232,2]
[354909462,1740811866132,-500.0,0.00039232,2]
[354909463,1740811866142,-730.92,0.00039232,2]
[354909464,1740811866152,-500.0,0.00039232,2]
[354909465,1740811866162,-510.48348613,0.00039232,2]
[354909466,1740811866171,-511.2011299,0.00039232,2]
[354909467,1740811866182,-1605.55,0.00039232,2]
[354909468,1740811866191,-519.86,0.00039232,2]
[354909469,1740811866201,-500.0,0.00039232,2]
[354909470,1740811866211,-500.0,0.00039232,2]
[354909471,1740811866221,-500.0,0.00039232,2]
[354909472,1740811866231,-500.0,0.00039232,2]
[354909473,1740811866241,-588.06,0.00039232,2]
[354909474,1740811866252,-157.74164857,0.00039232,2]
[354909475,1740811866262,-500.0,0.00039232,2]
[354909476,1740811866272,-500.0,0.00039232,2]
[354909477,1740811866282,-500.0,0.00039232,2]
[354909478,1740811866292,-500.0,0.00039232,2]
[354909479,1740811866302,-865.34,0.00039232,2]
[354909480,1740811866312,-1191.16,0.00039232,2]
[354909481,1740811866322,-513.87068856,0.00039232,2]
[354909482,1740811866332,-500.0,0.00039232,2]
[354909483,1740811866342,-644.81,0.00039232,2]
[354909484,1740811866352,-500.0,0.00039232,2]
[354909485,1740811866362,-917.64,0.00039232,2]
[354909486,1740811866372,-500.0,0.00039232,2]
[354909487,1740811866382,-552.5,0.00039232,2]
[354909488,1740811866392,-521.9,0.00039232,2]
[354909489,1740811866402,-809.72,0.00039232,2]
[354909490,1740811866412,-500.0,0.00039232,2]
[354909491,1740811866422,-500.0,0.00039232,2]
[354909492,1740811866431,-1363.47,0.00039232,2]
[354909493,1740811866442,-500.0,0.00039232,2]
[354909494,1740811866452,-602.09,0.00039232,2]
[354909495,1740811866462,-634.56,0.00039232,2]
[354909496,1740811866472,-500.0,0.00039232,2]
[354909497,1740811866482,-500.0,0.00039232,2]
[354909498,1740811866493,-500.0,0.00039232,2]
[354909499,1740811866503,-200.0,0.00039232,2]
[354909500,1740811866513,-500.0,0.00039232,2]
[354909501,1740811866523,-500.0,0.00039232,2]
[354909502,1740811866532,-500.0,0.00039232,2]
[354909503,1740811866542,-644.57,0.00039232,2]
[354909504,1740811866553,-654.56,0.00039232,2]
[354909505,1740811866563,-676.69,0.00039232,2]
[354909506,1740811866574,-500.0,0.00039232,2]
[354909507,1740811866585,-500.0,0.00039232,2]
[354909508,1740811866596,-500.0,0.00039232,2]
[354909509,1740811866607,-11726.64,0.00039232,2]
[354909510,1740811866617,-500.0,0.00039232,2]
[354909511,1740811866627,-500.0,0.00039232,2]
[354909512,1740811866637,-500.0,0.00039232,2]
[354909513,1740811866647,-500.0,0.00039232,2]
[354909514,1740811866656,-500.0,0.00039232,2]
[354909515,1740811866666,-500.0,0.00039232,2]
[354909516,1740811866675,-500.0,0.00039232,2]
[354909517,1740811866685,-5313.09,0.00039232,2]
[354909518,1740811866695,-500.0,0.00039232,2]
[354909519,1740811866705,-500.0,0.00039241,2]
[354909520,1740811866715,-2813.47,0.00039241,2]
[354909521,1740811866725,-500.0,0.00039241,2]
[354909522,1740811866735,-1884.91,0.00039241,2]
[354909523,1740811866746,-535.45,0.00039241,2]
[354909524,1740811866756,-500.0,0.00039241,2]
[354909525,1740811866767,-4114.31,0.00039241,2]
[354909526,1740811866777,-7874.14,0.00039241,2]
[354909527,1740811866787,-3153.12,0.00039241,2]
[354909528,1740811866798,-663.03,0.00039241,2]
[354909529,1740811866807,-1257.99,0.00039241,2]
[354909530,1740811866817,-595.6,0.00039241,2]
[354909531,1740811866828,-500.0,0.00039242,2]
[354909532,1740811866839,-500.0,0.00039242,2]
[354909533,1740811866849,-617.04,0.00039242,2]
[354909534,1740811866859,-746.87,0.00039242,2]
[354909535,1740811866868,-1137.71,0.00039242,2]
[354909536,1740811866878,-500.0,0.00039242,2]
[354909537,1740811866888,-500.0,0.00039242,2]
[354909538,1740811866897,-601.08,0.00039242,2]
[354909539,1740811866907,-2195.59,0.00039242,2]
[354909540,1740811866917,-518.58,0.00039242,2]
[354909541,1740811866927,-500.0,0.00039242,2]
[354909542,1740811866937,-2336.14,0.00039242,2]
[354909543,1740811866947,-500.0,0.00039242,2]
[354909544,1740811866957,-500.0,0.00039242,2]
[354909545,1740811866967,-2714.1,0.00039242,2]
[354909546,1740811866977,-500.0,0.00039242,2]
[354909547,1740811866987,-1650.45,0.00039242,2]
[354909548,1740811866997,-568.28,0.00039242,2]
[354909549,1740811867007,-500.0,0.00039242,2]
[354909550,1740811867018,-933.55,0.00039242,2]
[354909551,1740811867032,-577.12,0.00039242,2]
[354909552,1740811867041,-518.43,0.00039242,2]
[354909553,1740811867051,-500.0,0.00039242,2]
[354909554,1740811867061,-500.0,0.00039242,2]
[354909555,1740811867073,-1825.52,0.00039242,2]
[354909556,1740811867083,-500.0,0.00039242,2]
[354909557,1740811867093,-4821.71,0.00039242,2]
[354909558,1740811867104,-1709.97,0.00039242,2]
[354909559,1740811867115,-500.0,0.00039242,2]
[354909560,1740811867126,-2226.61,0.00039242,2]
[354909561,1740811867136,-943.97,0.00039242,2]
[354909562,1740811867146,-9728.52,0.00039242,2]
[354909563,1740811867156,-15718.97,0.00039242,2]
[354909564,1740811867166,-500.0,0.00039242,2]
[354909565,1740811867176,-500.0,0.00039242,2]
[354909566,1740811867185,-500.0,0.00039242,2]
[354909567,1740811867195,-515.02210196,0.00039242,2]
[354909568,1740811867205,-2808.52,0.00039242,2]
[354909569,1740811867215,-4194.48,0.00039242,2]
[354909570,1740811867225,-623.78,0.00039242,2]
[354909571,1740811867235,-839.12,0.00039242,2]
[354909572,1740811867245,-687.0,0.00039242,2]
[354909573,1740811867255,-741.95,0.00039242,2]
[354909574,1740811867265,-1109.45,0.00039242,2]
[354909575,1740811867275,-3010.96,0.00039242,2]
[354909576,1740811867285,-500.0,0.00039242,2]
[354909577,1740811867295,-2412.9,0.00039242,2]
[354909578,1740811867305,-2538.08,0.00039242,2]
[354909579,1740811867315,-1117.29,0.00039242,2]
[354909580,1740811867326,-500.0,0.00039242,2]
[354909581,1740811867338,-1681.1,0.00039242,2]
[354909582,1740811867348,-1712.21,0.00039242,2]
[354909583,1740811867359,-2053.28,0.00039242,2]
[354909584,1740811867370,-500.0,0.00039242,2]
[354909585,1740811867381,-500.0,0.00039242,2]
[354909586,1740811867391,-793.88,0.00039242,2]
[354909587,1740811867401,-938.94,0.00039242,2]
[354909588,1740811867411,-1539.94,0.00039242,2]
[354909589,1740811867421,-500.0,0.00039242,2]
[354909590,1740811867431,-1713.79,0.00039242,2]
[354909591,1740811867442,-650.96,0.00039242,2]
[354909592,1740811867453,-671.96,0.00039242,2]
[354909593,1740811867463,-500.0,0.00039242,2]
[354909594,1740811867473,-500.0,0.00039242,2]
[354909595,1740811867484,-2273.65,0.00039242,2]
[354909596,1740811867495,-987.28,0.00039242,2]
[354909597,1740811867506,-518.59,0.00039242,2]
[354909598,1740811867516,-2982.38,0.00039242,2]
[354909599,1740811867527,-47375.92,0.00039242,2]
[354909600,1740811867537,-815.6,0.00039242,2]
[354909601,1740811867548,-2108.69,0.00039242,2]
[354909602,1740811867559,-1808.48,0.00039242,2]
[354909603,1740811867781,-575.08,0.00039242,2]
[354909604,1740811867793,-969.76,0.00039242,2]
[354909605,1740811867802,-500.0,0.00039242,2]
[354909606,1740811867813,-2364.74,0.00039242,2]
[354909607,1740811867823,-3350.97,0.00039242,2]
[354909608,1740811867835,-1112.11,0.00039242,2]
[354909609,1740811867845,-3034.29,0.00039242,2]
[354909610,1740811867855,-1761.34,0.00039242,2]
[354909611,1740811867864,-500.0,0.00039242,2]
[354909612,1740811867874,-500.0,0.00039242,2]
[354909613,1740811867884,-500.0,0.00039242,2]
[354909614,1740811867894,-181.434084,0.0003926,14]
[354909615,1740811867904,-181.434084,0.0003926,14]
[354909616,1740811867914,-408.105417,0.0003926,14]
[354909617,1740811867924,-151.0,0.0003926,14]
[354909618,1740811867935,-157.660582,0.0003926,14]
[354909619,1740811867945,-157.660582,0.0003926,14]
[354909620,1740811867955,-510051.89247927,0.0003926,30]
[354909621,1740811867966,-315.0,0.00039263,14]
[354909622,1740811867977,-350.0,0.00039263,14]
[354909623,1740811867987,-394.19319233,0.00039263,14]
[354909624,1740811867997,-315.0,0.00039263,14]
[354909625,1740811868007,-1000.0,0.00039267,2]
[354909626,1740811868017,-299.84405853,0.0003932,2]
[354909627,1740811868030,-500.0,0.00039342,2]
[354909628,1740811868042,-500.0,0.00039342,2]
[354909629,1740811868052,-500.0,0.00039342,2]
[354909630,1740811868062,-500.0,0.00039342,2]
[354909631,1740811868071,-500.0,0.00039342,2]
[354909632,1740811868081,-634.5850817,0.00039342,2]
[354909633,1740811868091,-761.09,0.00039342,2]
[354909634,1740811868100,-500.0,0.00039342,2]
[354909635,1740811868112,-558.34,0.00039342,2]
[354909636,1740811868122,-500.0,0.00039342,2]
[354909637,1740811868132,-303.68788058,0.00039342,2]
[354909638,1740811868141,-507.30752933,0.00039342,2]
[354909639,1740811868151,-1292.4,0.00039342,2]
[354909640,1740811868160,-500.0,0.00039342,2]
[354909641,1740811868170,-740.6,0.00039342,2]
[354909642,1740811868179,-910.15,0.00039342,2]
[354909643,1740811868189,-500.0,0.00039342,2]
[354909644,1740811868203,-1651.33,0.00039342,2]
[354909645,1740811868212,-1321.37,0.00039342,2]
[354909646,1740811868223,-196.2690269,0.00039342,2]
[354909647,1740811868233,-500.0,0.00039342,2]
[354909648,1740811868243,-742.58,0.00039342,2]
[354909649,1740811868253,-500.0,0.00039342,2]
[354909650,1740811868263,-830.38,0.00039342,2]
[354909651,1740811868274,-500.0,0.00039342,2]
[354909652,1740811868284,-554.24,0.00039342,2]
[354909653,1740811868294,-1672.58,0.00039342,2]
[354909654,1740811868304,-500.0,0.00039342,2]
[354909655,1740811868314,-500.0,0.00039342,2]
[354909656,1740811868323,-1193.13,0.00039342,2]
[354909657,1740811868334,-1310.15,0.00039342,2]
[354909658,1740811868343,-662.53,0.00039342,2]
[354909659,1740811868353,-510.84797747,0.00039342,2]
[354909660,1740811868363,-595.32,0.00039342,2]
[354909661,1740811868374,-659.69,0.00039342,2]
[354909662,1740811868384,-620.12,0.00039342,2]
[354909663,1740811868394,-1697.33,0.00039342,2]
[354909664,1740811868403,-642.22051727,0.00039342,2]
[354909665,1740811868413,-623.34,0.00039342,2]
[354909666,1740811868423,-500.0,0.00039342,2]
[354909667,1740811868432,-615.17,0.00039342,2]
[354909668,1740811868442,-1472.11,0.00039342,2]
[354909669,1740811868452,-500.0,0.00039342,2]
[354909670,1740811868462,-500.0,0.00039342,2]
[354909671,1740811868472,-1000.0,0.00039342,60]
[354909672,1740811868483,-500.0,0.00039342,2]
[354909673,1740811868494,-500.0,0.00039342,2]
[354909674,1740811868504,-500.0,0.00039342,2]
[354909675,1740811868515,-500.0,0.00039342,2]
[354909676,1740811868524,-1810.15,0.00039342,2]
[354909677,1740811868535,-1341.57,0.00039342,2]
[354909678,1740811868545,-500.0,0.00039342,2]
[354909679,1740811868555,-512.86,0.00039342,2]
[354909680,1740811868565,-500.0,0.00039342,2]
[354909681,1740811868575,-500.0,0.00039342,2]
[354909682,1740811868589,-500.0,0.00039342,2]
[354909683,1740811868599,-500.0,0.00039342,2]
[354909684,1740811868609,-747.13,0.00039342,2]
[354909685,1740811868620,-500.0,0.00039342,2]
[354909686,1740811868631,-543.92248431,0.00039342,2]
[354909687,1740811868642,-500.0,0.00039342,2]
[354909688,1740811868652,-500.0,0.00039342,2]
[354909689,1740811868662,-500.0,0.00039342,2]
[354909690,1740811868672,-500.0,0.00039342,2]
[354909691,1740811868682,-992.96,0.00039342,2]
[354909692,1740811868692,-500.0,0.00039342,2]
[354909693,1740811868701,-500.0,0.00039342,2]
[354909694,1740811868711,-2306.22,0.00039342,2]
[354909695,1740811868721,-2168.4,0.00039342,2]
[354909696,1740811868732,-500.0,0.00039342,2]
[354909697,1740811868742,-500.0,0.00039342,2]
[354909698,1740811868752,-1350.29,0.00039342,2]
[354909699,1740811868762,-500.0,0.00039342,2]
[354909700,1740811868772,-658.62,0.00039342,2]
[354909701,1740811868783,-500.0,0.00039342,2]
[354909702,1740811868793,-1048.64,0.00039342,2]
[354909703,1740811868803,-500.0,0.00039342,2]
[354909704,1740811868814,-533.47922802,0.00039342,2]
[354909705,1740811868824,-500.0,0.00039342,2]
[354909706,1740811868835,-500.0,0.00039342,2]
[354909707,1740811868845,-9075.31,0.00039342,2]
[354909708,1740811868855,-956.44,0.00039342,2]
[354909709,1740811868866,-500.0,0.00039342,2]
[354909710,1740811868875,-500.0,0.00039342,2]
[354909711,1740811868885,-560.74,0.00039342,2]
[354909712,1740811868895,-18626.62,0.00039342,2]
[354909713,1740811868905,-500.0,0.00039342,2]
[354909714,1740811868915,-500.0,0.00039342,2]
[354909715,1740811868925,-1182.87,0.00039342,2]
[354909716,1740811868935,-2053.76,0.00039342,2]
[354909717,1740811868944,-500.0,0.00039342,2]
[354909718,1740811868954,-695.97,0.00039342,2]
[354909719,1740811868964,-1685.76,0.00039342,2]
[354909720,1740811868974,-863.98,0.00039342,2]
[354909721,1740811868985,-2745.23,0.00039342,2]
[354909722,1740811868995,-500.0,0.00039342,2]
[354909723,1740811869005,-4158.89,0.00039342,2]
[354909724,1740811869014,-500.0,0.00039342,2]
[354909725,1740811869024,-500.0,0.00039342,2]
[354909726,1740811869039,-266057.92,0.00039342,2]
[354909727,1740811869050,-2470.32,0.00039342,2]
[354909728,1740811869060,-500.0,0.00039342,2]
[354909729,1740811869071,-2772.96,0.00039342,2]
[354909730,1740811869081,-1017.39,0.00039342,2]
[354909731,1740811869090,-500.0,0.00039342,2]
[354909732,1740811869100,-5344.3,0.00039342,2]
[354909733,1740811869112,-313.07920656,0.00039342,2]
[354909734,1740811869122,-500.0,0.00039342,2]
[354909735,1740811869131,-683.56,0.00039342,2]
[354909736,1740811869141,-508.22,0.00039342,2]
[354909737,1740811869151,-6875.96,0.00039342,2]
[354909738,1740811869160,-500.0,0.00039342,2]
[354909739,1740811869169,-639.84732129,0.00039342,2]
[354909740,1740811869179,-620.04494997,0.00039342,2]
[354909741,1740811869188,-915.39,0.00039342,2]
[354909742,1740811869197,-500.0,0.00039342,2]
[354909743,1740811869207,-500.0,0.00039342,2]
[354909744,1740811869217,-706.78,0.00039342,2]
[354909745,1740811869226,-997.14,0.00039342,2]
[354909746,1740811869236,-500.0,0.00039342,2]
[354909747,1740811869245,-15521.13,0.00039342,2]
[354909748,1740811869255,-460.22798626,0.00039342,2]
[354909749,1740811869265,-500.0,0.00039342,2]
[354909750,1740811869274,-819.72,0.00039342,2]
[354909751,1740811869284,-530.31,0.00039342,2]
[354909752,1740811869293,-970.91,0.00039342,2]
[354909753,1740811869303,-3646.95,0.00039342,2]
[354909754,1740811869313,-818.66,0.00039342,2]
[354909755,1740811869322,-2463.49,0.00039342,2]
[354909756,1740811869332,-4045.94,0.00039342,2]
[354909757,1740811869342,-500.0,0.00039342,2]
[354909758,1740811869353,-500.0,0.00039342,2]
[354909759,1740811869362,-300.0,0.00039342,120]
[354909760,1740811869372,-854.31,0.00039343,2]
[354909761,1740811869382,-500.0,0.00039343,2]
[354909762,1740811869391,-990.59,0.00039343,2]
[354909763,1740811869401,-500.0,0.00039343,2]
[354909764,1740811869410,-500.0,0.00039343,2]
[354909765,1740811869420,-500.0,0.00039343,2]
[354909766,1740811869430,-500.0,0.00039343,2]
[354909767,1740811869439,-552.52,0.00039343,2]
[354909768,1740811869455,-1335.56,0.00039343,2]
[354909769,1740811869465,-500.0,0.00039343,2]
[354909770,1740811869475,-655.98,0.00039343,2]
[354909771,1740811869485,-500.0,0.00039343,2]
[354909772,1740811869495,-500.0,0.00039343,2]
[354909773,1740811869505,-730.11,0.00039343,2]
[354909774,1740811869515,-500.0,0.00039343,2]
[354909775,1740811869525,-1049.08,0.00039343,2]
[354909776,1740811869535,-2324.69,0.00039343,2]
[354909777,1740811869545,-1822.6,0.00039343,2]
[354909778,1740811869556,-500.0,0.00039343,2]
[354909779,1740811869565,-500.0,0.00039343,2]
[354909780,1740811869575,-500.0,0.00039343,2]
[354909781,1740811869586,-500.0,0.00039343,2]
[354909782,1740811869596,-500.0,0.00039343,2]
[354909783,1740811869606,-500.0,0.00039343,2]
[354909784,1740811869616,-500.0,0.00039343,2]
[354909785,1740811869626,-500.0,0.00039343,2]
[354909786,1740811869635,-500.0,0.00039343,2]
[354909787,1740811869646,-800.36,0.00039343,2]
[354909788,1740811869656,-503.02690774,0.00039343,2]
[354909789,1740811869666,-500.0,0.00039343,2]
[354909790,1740811869676,-506.93336145,0.00039343,2]
[354909791,1740811869686,-500.0,0.00039343,2]
[354909792,1740811869696,-500.0,0.00039343,2]
[354909793,1740811869705,-500.0,0.00039343,2]
[354909794,1740811869715,-500.0,0.00039343,2]
[354909795,1740811869725,-500.0,0.00039343,2]
[354909796,1740811869734,-500.0,0.00039343,2]
[354909797,1740811869745,-500.0,0.00039343,2]
[354909798,1740811869754,-500.0,0.00039343,2]
[354909799,1740811869764,-500.0,0.00039343,2]
[354909800,1740811869775,-500.0,0.00039343,2]
[354909801,1740811869784,-359.70484199,0.00039343,2]
[354909802,1740811869794,-500.0,0.00039343,2]
[354909803,1740811869804,-500.0,0.00039343,2]
[354909804,1740811869813,-500.0,0.00039343,2]
[354909805,1740811869823,-500.0,0.00039343,2]
[354909806,1740811869833,-841.87,0.00039343,2]
[354909807,1740811869843,-500.0,0.00039343,2]
[354909808,1740811869853,-500.0,0.00039343,2]
[354909809,1740811869863,-514.06547718,0.00039343,2]
[354909810,1740811869872,-1050.89,0.00039343,2]
[354909811,1740811869882,-1599.92,0.00039343,2]
[354909812,1740811869891,-500.0,0.00039343,2]
[354909813,1740811869901,-500.0,0.00039343,2]
[354909814,1740811869910,-500.0,0.00039343,2]
[354909815,1740811869920,-593.34,0.00039343,2]
[354909816,1740811869929,-500.0,0.00039343,2]
[354909817,1740811869938,-514.75329867,0.00039343,2]
[354909818,1740811869948,-500.0,0.00039343,2]
[354909819,1740811869957,-500.0,0.00039343,2]
[354909820,1740811869966,-500.0,0.00039343,2]
[354909821,1740811869976,-500.0,0.00039343,2]
[354909822,1740811869986,-500.0,0.00039343,2]
[354909823,1740811869995,-500.0,0.00039343,2]
[354909824,1740811870005,-841.42,0.00039343,2]